fUST/lending_fUST_20240501
["ID","MTS","AMOUNT","RATE_DAILY","PERIOD"]
[325184370,1714554642853,-1751.78944315,0.0003,7]
[325184371,1714554642863,-53183.4571757,0.0003,2]
[325184372,1714554642873,-276.39943109,0.00030999,2]
[325184373,1714554642885,-4506.99403117,0.00031,4]
[325184374,1714554642895,-638.88710828,0.00032,4]
[325184375,1714554642905,-815.03458186,0.0003209,2]
[325184376,1714554642914,-1503.40089435,0.000328,120]
[325184377,1714554642924,-2499.47,0.00032876,7]
[325184378,1714554642933,-2499.47,0.00032876,10]
[325184379,1714554642942,-2499.47,0.00032876,13]
[325184380,1714554642952,-2499.47,0.00032876,16]
[325184381,1714554642961,-2499.47,0.00032876,19]
[325184382,1714554642970,-2499.47,0.00032876,22]
[325184383,1714554642980,-2499.47,0.00032876,25]
[325184384,1714554642989,-2499.47,0.00032876,28]
[325184385,1714554642998,-2499.47,0.00032876,31]
[325184386,1714554643007,-2499.47,0.00032876,34]
[325184387,1714554643017,-2499.47,0.00032876,37]
[325184388,1714554643026,-523.15115388,0.00033,2]
[325184389,1714554643035,-466.46671286,0.00034,4]
[325184390,1714554643045,-1608.78436868,0.00034,60]
[325184391,1714554643054,-1271.86176283,0.00034728,12]
[325184392,1714554643064,-1000.0,0.000348,3]
[325184393,1714554643074,-26910.69445433,0.000349,2]
[325184394,1714554643083,-2499.47,0.00034999,40]
[325184395,1714554643092,-5917.45193267,0.00035,4]
[325184396,1714554643102,-1753.71255042,0.00035,30]
[325184397,1714554643111,-214.65163076,0.00035,4]
[325184398,1714554643120,-425.45157815,0.00035,10]
[325184399,1714554643130,-854.25779961,0.00035,2]
[325184400,1714554643143,-1226.97473075,0.00035,30]
[325184401,1714554643152,-912.88779443,0.00035,4]
[325184402,1714554643161,-411.556233,0.00035616,120]
[325184403,1714554643172,-22464.61,0.00035616,3]
[325184404,1714554643180,-18720.51,0.00035616,3]
[325184405,1714554643190,-15600.43,0.00035616,3]
[325184406,1714554643199,-13000.35,0.00035616,3]
[325184408,1714554643208,-5000.0,0.00036,4]
[325184409,1714554643217,-28601.1760015,0.00036,2]
[325184410,1714554643226,-2499.47,0.00036999,43]
[325184412,1714554643235,-10664.09300882,0.00037,5]
[325184414,1714554643244,-2049.08470554,0.00037,2]
[325184416,1714554643253,-150.69860279,0.00037143,2]
[325184418,1714554643263,-301.39720559,0.00037767,4]
[325184420,1714554643273,-239.19602788,0.00038,30]
[325184421,1714554643282,-815.03458186,0.00038185,2]
[325184422,1714554643291,-602.79441118,0.00038401,7]
[325184423,1714554643300,-1205.58882236,0.00039374,30]
[325184425,1714554643309,-607.91840391,0.0004,2]
[325184426,1714554643319,-1648.0,0.00040916,3]
[325184427,1714554643328,-315.93873987,0.00041,2]
[325184428,1714554643337,-411.556233,0.00041553,120]
[325184429,1714554643346,-697.0442924,0.0004197,30]
[325184430,1714554643355,-154.70605849,0.0004234,10]
[325184431,1714554643365,-1695.41656809,0.000425,30]
[325184432,1714554643377,-1007.951808,0.000429,44]
[325184434,1714554643389,-1000.0,0.000434,44]
[325184436,1714554643399,-1000.0,0.000439,44]
[325184439,1714554643411,-815.03458186,0.0004428,2]
[325184441,1714554643419,-2499.47,0.00044367,46]
[325184442,1714554643429,-2499.47,0.00044369,49]
[325184443,1714554643439,-2499.47,0.00044369,52]
[325184444,1714554643448,-2499.47,0.00044369,55]
[325184445,1714554643458,-2499.47,0.00044369,58]
[325184446,1714554643467,-2499.47,0.00044369,61]
[325184447,1714554643476,-2499.47,0.00044369,64]
[325184448,1714554643486,-2499.47,0.00044369,64]
[325184449,1714554643496,-2499.47,0.00044369,64]
[325184450,1714554643506,-2499.47,0.00044369,64]
[325184451,1714554643515,-2499.58,0.00044369,64]
[325184452,1714554643525,-5470.68,0.00044379,7]
[325184453,1714554643534,-5470.68,0.00044379,7]
[325184454,1714554643544,-5470.68,0.00044379,7]
[325184455,1714554643554,-5470.68,0.00044379,7]
[325184456,1714554643563,-5470.68,0.00044379,7]
[325184457,1714554643572,-5470.68,0.00044379,7]
[325184458,1714554643581,-5470.68,0.00044379,7]
[325184459,1714554643590,-5470.68,0.00044379,7]
[325184460,1714554643599,-5470.68,0.00044379,7]
[325184461,1714554643608,-5470.68,0.00044379,7]
[325184462,1714554643617,-607.4595,0.0004438,2]
[325184463,1714554643627,-7902.08997452,0.0004438,30]
[325184464,1714554643637,-255614.59665246,0.0004438,7]
[325184465,1714554643665,-500.0022972,0.0004438,7]
[325184466,1714554643676,-57153.41993803,0.0004438,7]
[325184467,1714554643688,-44921.47534205,0.0004438,7]
[325184469,1714554644159,273.37336231,9.9e-05,2]
[325184536,1714554646679,-1280.89945,0.00020913,2]
[325184537,1714554646800,-820.81868346,0.00020913,2]
[325184538,1714554646813,-5338.11938036,0.00020913,2]
[325184539,1714554646824,-50842.02412651,0.0004438,7]
[325184540,1714554646837,-149081.37389113,0.0004438,30]
[325184541,1714554646849,-1313.76879929,0.0004438,30]
[325184542,1714554646861,-11768.23648366,0.0004438,2]
[325184543,1714554646872,-22242.40546896,0.0004438,120]
[325184544,1714554646883,-164.04387465,0.0004438,43]
[325184545,1714554646894,-164.04387465,0.0004438,43]
[325184546,1714554646904,-164.04387465,0.0004438,43]
[325184548,1714554646916,-1000.0,0.000444,44]
[325184550,1714554646926,-219.49535496,0.00044999,120]
[325184552,1714554646939,-1520.24750243,0.00045,4]
[325184554,1714554646950,-817.67227124,0.00045,20]
[325184556,1714554646962,-187.25104236,0.000459,4]
[325184557,1714554646974,-607.4595,0.00045947,2]
[325184558,1714554646987,-21280.96010486,0.0004698,120]
[325184559,1714554652562,5000.0,0.000266,120]
[325184560,1714554661789,5000.0,0.000266,120]
[325184561,1714554671345,5000.0,0.000266,120]
[325184562,1714554680435,5000.0,0.000266,120]
[325184563,1714554689108,5000.0,0.000266,120]
[325184564,1714554698610,5000.0,0.000266,120]
[325184565,1714554707230,273.37336231,9.9e-05,2]
[325184566,1714554715288,273.37336231,9.9e-05,2]
[325184567,1714554724060,273.37336231,9.9e-05,2]
[325184568,1714554733659,273.37336231,9.9e-05,2]
[325184569,1714554742405,273.37336231,9.9e-05,2]
[325184570,1714554750705,273.37336231,9.9e-05,2]
[325184571,1714554758669,273.37336231,9.9e-05,2]
[325184572,1714554766962,273.37336231,9.9e-05,2]
[325184573,1714554774968,273.37336231,9.9e-05,2]
[325184574,1714554784577,273.37336231,9.9e-05,2]
[325184575,1714554792590,273.37336231,9.9e-05,2]
[325184576,1714554801512,273.37336231,9.9e-05,2]
[325184577,1714554809576,273.37336231,9.9e-05,2]
[325184578,1714554818165,273.37336231,9.9e-05,2]
[325184579,1714554826706,273.37336231,9.9e-05,2]
[325184580,1714554834974,273.37336231,9.9e-05,2]
[325184581,1714554843220,273.37336231,9.9e-05,2]
[325184582,1714554851720,273.37336231,9.9e-05,2]
[325184583,1714554859759,273.37336231,9.9e-05,2]
[325184584,1714554868009,273.37336231,9.9e-05,2]
[325184585,1714554877987,273.37336231,9.9e-05,2]
[325184586,1714554886223,273.37336231,9.9e-05,2]
[325184587,1714554894282,273.37336231,9.9e-05,2]
[325184588,1714554902606,273.37336231,9.9e-05,2]
[325184589,1714554910604,273.37336231,9.9e-05,2]
[325184590,1714554918910,273.37336231,9.9e-05,2]
[325184591,1714554926972,273.37336231,9.9e-05,2]
[325184592,1714554935247,273.37336231,9.9e-05,2]
[325184593,1714554943295,273.37336231,9.9e-05,2]
[325184594,1714554951685,273.37336231,9.9e-05,2]
[325184595,1714554959657,273.37336231,9.9e-05,2]
[325184596,1714554967968,273.37336231,9.9e-05,2]
[325184597,1714554976568,273.37336231,9.9e-05,2]
[325184598,1714554984986,273.37336231,9.9e-05,2]
[325184599,1714554993349,273.37336231,9.9e-05,2]
[325184600,1714555002667,273.37336231,9.9e-05,2]
[325184601,1714555010959,273.37336231,9.9e-05,2]
[325184602,1714555019331,273.37336231,9.9e-05,2]
[325184603,1714555028586,273.37336231,9.9e-05,2]
[325184604,1714555036863,273.37336231,9.9e-05,2]
[325184605,1714555045029,273.37336231,9.9e-05,2]
[325184606,1714555053889,273.37336231,9.9e-05,2]
[325184607,1714555062016,273.37336231,9.9e-05,2]
[325184608,1714555071010,273.37336231,9.9e-05,2]
[325184609,1714555079482,273.37336231,9.9e-05,2]
[325184610,1714555088066,273.37336231,9.9e-05,2]
[325184611,1714555096311,273.37336231,9.9e-05,2]
[325184612,1714555104919,273.37336231,9.9e-05,2]
[325184613,1714555113324,273.37336231,9.9e-05,2]
[325184614,1714555121970,273.37336231,9.9e-05,2]
[325184615,1714555131109,273.37336231,9.9e-05,2]
[325184616,1714555140242,273.37336231,9.9e-05,2]
[325184617,1714555148589,273.37336231,9.9e-05,2]
[325184618,1714555156657,273.37336231,9.9e-05,2]
[325184619,1714555165166,273.37336231,9.9e-05,2]
[325184620,1714555173716,273.37336231,9.9e-05,2]
[325184621,1714555182504,273.37336231,9.9e-05,2]
[325184622,1714555191098,273.37336231,9.9e-05,2]
[325184623,1714555199605,273.37336231,9.9e-05,2]
[325184624,1714555208584,273.37336231,9.9e-05,2]
[325184625,1714555217417,273.37336231,9.9e-05,2]
[325184626,1714555225471,273.37336231,9.9e-05,2]
[325184627,1714555233778,273.37336231,9.9e-05,2]
[325184628,1714555242103,273.37336231,9.9e-05,2]
[325184629,1714555251117,273.37336231,9.9e-05,2]
[325184630,1714555259313,273.37336231,9.9e-05,2]
[325184631,1714555268065,273.37336231,9.9e-05,2]
[325184632,1714555276340,273.37336231,9.9e-05,2]
[325184633,1714555284476,273.37336231,9.9e-05,2]
[325184634,1714555292848,273.37336231,9.9e-05,2]
[325184635,1714555300859,273.37336231,9.9e-05,2]
[325184636,1714555309974,273.37336231,9.9e-05,2]
[325184638,1714555318627,273.37336231,9.9e-05,2]
[325184639,1714555326985,273.37336231,9.9e-05,2]
[325184640,1714555335247,273.37336231,9.9e-05,2]
[325184641,1714555343811,273.37336231,9.9e-05,2]
[325184642,1714555352426,273.37336231,9.9e-05,2]
[325184643,1714555361302,273.37336231,9.9e-05,2]
[325184644,1714555369906,273.37336231,9.9e-05,2]
[325184645,1714555378221,273.37336231,9.9e-05,2]
[325184646,1714555386289,273.37336231,9.9e-05,2]
[325184647,1714555394572,273.37336231,9.9e-05,2]
[325184648,1714555403670,273.37336231,9.9e-05,2]
[325184649,1714555412556,273.37336231,9.9e-05,2]
[325184650,1714555420575,273.37336231,9.9e-05,2]
[325184651,1714555429510,273.37336231,9.9e-05,2]
[325184652,1714555438784,273.37336231,9.9e-05,2]
[325184654,1714555446872,273.37336231,9.9e-05,2]
[325184655,1714555456338,273.37336231,9.9e-05,2]
[325184656,1714555466109,273.37336231,9.9e-05,2]
[325184657,1714555474416,273.37336231,9.9e-05,2]
[325184658,1714555482414,273.37336231,9.9e-05,2]
[325184660,1714555490950,273.37336231,9.9e-05,2]
[325184661,1714555494993,-7875.36127702,0.0001231,2]
[325184662,1714555495031,-2590.79776208,0.00012311,2]
[325184663,1714555495066,-16423.8409609,0.00013692,2]
[325184664,1714555499515,273.37336231,9.9e-05,2]
[325184665,1714555507901,273.37336231,9.9e-05,2]
[325184666,1714555516045,273.37336231,9.9e-05,2]
[325184667,1714555524899,273.37336231,9.9e-05,2]
[325184668,1714555532942,273.37336231,9.9e-05,2]
[325184669,1714555542386,273.37336231,9.9e-05,2]
[325184670,1714555551067,273.37336231,9.9e-05,2]
[325184671,1714555559332,273.37336231,9.9e-05,2]
[325184672,1714555567905,273.37336231,9.9e-05,2]
[325184673,1714555576231,-2144.6119061,0.00013593,2]
[325184674,1714555576252,-4361.47481097,0.00013691,2]
[325184675,1714555576273,-659.60391692,0.00013691,2]
[325184676,1714555576294,-18223.00936601,0.00013692,2]
[325184677,1714555576337,273.37336231,9.9e-05,2]
[325184678,1714555584385,273.37336231,9.9e-05,2]
[325184679,1714555593243,273.37336231,9.9e-05,2]
[325184680,1714555601841,273.37336231,9.9e-05,2]
[325184681,1714555611238,273.37336231,9.9e-05,2]
[325184682,1714555620225,273.37336231,9.9e-05,2]
[325184683,1714555628247,273.37336231,9.9e-05,2]
[325184684,1714555636744,273.37336231,9.9e-05,2]
[325184685,1714555637162,-159.61899264,0.0001369,2]
[325184686,1714555637182,-187.56656808,0.00013691,2]
[325184687,1714555637201,-24579.88923638,0.00013692,2]
[325184688,1714555637222,-24900.0,0.00013693,2]
[325184689,1714555637241,-928.84070559,0.00014,2]
[325184690,1714555637262,-250.0,0.00014775,2]
[325184691,1714555637282,-2101.71813346,0.00015,2]
[325184692,1714555637302,-312.97578303,0.00015,2]
[325184693,1714555637324,-514.39558646,0.00016,2]
[325184694,1714555637344,-9378.45996285,0.00016,2]
[325184695,1714555637366,-314.81328207,0.00018155,2]
[325184696,1714555637385,-730.70803192,0.00018155,2]
[325184697,1714555637404,-603.94471779,0.000185,2]
[325184698,1714555637423,-800.0,0.00019,2]
[325184699,1714555637443,-160.676051,0.00019178,2]
[325184700,1714555637461,-161.032701,0.00019178,2]
[325184701,1714555637480,-1091.47655963,0.00019756,2]
[325184702,1714555637499,-501.15336898,0.00019999,2]
[325184703,1714555637519,-223.57277838,0.00019999,2]
[325184704,1714555637537,-5461.4995396,0.0002,2]
[325184705,1714555637556,-67435.2931103,0.0002,2]
[325184706,1714555637575,-241.74656629,0.0002,2]
[325184707,1714555637594,-330.04006716,0.0002,2]
[325184708,1714555637612,-184.19793464,0.0002,2]
[325184709,1714555637631,-167.74301048,0.0002,2]
[325184710,1714555637651,-154.78330338,0.00020908,2]
[325184711,1714555637670,-200.12196174,0.00020908,2]
[325184712,1714555637688,-1088.50831524,0.00020909,2]
[325184713,1714555637708,-937.00916426,0.00020911,2]
[325184714,1714555637728,-209.40982226,0.00020913,2]
[325184715,1714555637747,-146.82209539,0.00020913,2]
[325184716,1714555639137,-718.91470132,0.00020913,2]
[325184717,1714555639159,-480.2470067,0.00020913,2]
[325184718,1714555639182,-166.666666,0.00021918,2]
[325184719,1714555639205,-159.24114282,0.00022,2]
[325184720,1714555639229,-166.666666,0.00022431,2]
[325184721,1714555639252,-166.666666,0.00022944,2]
[325184722,1714555639279,-714.26625523,0.00023,2]
[325184723,1714555639299,-166.666666,0.00023456,2]
[325184724,1714555639321,-166.666666,0.00023969,2]
[325184725,1714555639342,-246.30815097,0.00024,2]
[325184726,1714555639362,-166.666666,0.00024482,2]
[325184727,1714555639381,-489.02074914,0.000265,2]
[325184728,1714555639401,-7090.93434782,0.0002659,3]
[325184729,1714555644911,273.37336231,9.9e-05,2]
[325184730,1714555652251,-175.05966117,0.00016,2]
[325184731,1714555652282,-15373.67565218,0.0002659,3]
[325184732,1714555652301,-1564.49780022,0.000266,2]
[325184733,1714555652320,-154.70605849,0.000266,2]
[325184734,1714555652339,-756.93644427,0.000266,2]
[325184735,1714555652357,-10593.59324698,0.000266,2]
[325184736,1714555652375,-241.78832313,0.00028,2]
[325184737,1714555652394,-1751.78944315,0.0003,7]
[325184738,1714555652412,-638.88710828,0.00032,4]
[325184739,1714555652431,-5000.0,0.00033,4]
[325184740,1714555652450,-466.46671286,0.00034,4]
[325184741,1714555652468,-1608.78436868,0.00034,60]
[325184742,1714555652491,-489.02074911,0.000341,2]
[325184743,1714555652512,-2499.47,0.00034799,7]
[325184744,1714555652532,-2499.47,0.00034799,10]
[325184745,1714555652550,-2499.47,0.00034799,13]
[325184746,1714555652569,-2499.47,0.00034799,16]
[325184747,1714555652587,-2499.47,0.00034799,19]
[325184748,1714555652606,-1000.0,0.000348,3]
[325184749,1714555652624,-333.81905426,0.00035,10]
[325184750,1714555652642,-214.65163076,0.00035,4]
[325184751,1714555652661,-554.45471951,0.00035,30]
[325184752,1714555652680,-5917.45193267,0.00035,4]
[325184753,1714555652699,-597.98045973,0.00035,2]
[325184754,1714555652718,-1226.97473075,0.00035,30]
[325184755,1714555652737,-912.88779443,0.00035,4]
[325184756,1714555652756,-2000.0,0.00035516,2]
[325184757,1714555652779,-2499.47,0.00035616,22]
[325184758,1714555652798,-411.556233,0.00035616,120]
[325184759,1714555652817,-2499.47,0.00035999,25]
[325184760,1714555652837,-2144.61190608,0.00036768,8]
[325184761,1714555652856,-10664.09300882,0.00037,5]
[325184762,1714555652876,-2049.08470554,0.00037,2]
[325184763,1714555652897,-150.66852924,0.00037726,2]
[325184764,1714555652917,-320.898431,0.00038,30]
[325184765,1714555652937,-301.33705847,0.0003836,4]
[325184766,1714555652959,-602.67411694,0.00039005,7]
[325184767,1714555652977,-607.4595,0.00039942,2]
[325184768,1714555652997,-18720.51,0.0003999,3]
[325184769,1714555653019,-1205.34823389,0.00039992,30]
[325184770,1714555653039,-486.33472313,0.0004,2]
[325184771,1714555653060,-5104.97968368,0.0004,4]
[325184772,1714555653081,-315.93873987,0.00041,2]
[325184773,1714555653100,-411.556233,0.00041553,120]
[325184774,1714555653119,-607.4595,0.00041607,2]
[325184775,1714555653140,-489.02074911,0.000417,2]
[325184776,1714555653160,-1660.5,0.0004192,3]
[325184777,1714555653180,-697.0442924,0.00041972,30]
[325184778,1714555653199,-154.70605849,0.0004234,10]
[325184779,1714555653218,-491.66851525,0.000425,30]
[325184780,1714555653239,-607.45951,0.00043271,2]
[325184781,1714555653418,-1007.951808,0.000434,44]
[325184782,1714555653438,-1000.0,0.000439,44]
[325184783,1714555653459,-5470.68,0.00043999,7]
[325184784,1714555653480,-5470.68,0.00043999,7]
[325184785,1714555653499,-5470.68,0.00043999,7]
[325184786,1714555653524,-5470.68,0.00043999,7]
[325184787,1714555653547,-5470.68,0.00043999,7]
[325184788,1714555653566,-5470.68,0.00043999,7]
[325184789,1714555653585,-5470.68,0.00043999,7]
[325184790,1714555653604,-5470.68,0.00043999,7]
[325184791,1714555653624,-105238.28184401,0.00044,2]
[325184792,1714555653643,-1000.0,0.000444,44]
[325184793,1714555653663,-607.4595,0.00044935,2]
[325184794,1714555653684,-1520.24750243,0.00045,4]
[325184795,1714555653704,-159.0,0.00045,90]
[325184796,1714555653724,-159.0,0.00045685,90]
[325184797,1714555653744,-154.73694719,0.000459,4]
[325184798,1714555653767,-2499.47,0.00046044,28]
[325184799,1714555653788,-607.45951,0.00046599,2]
[325184800,1714555653809,-2499.47,0.00046979,31]
[325184801,1714555653829,-2499.47,0.00046979,34]
[325184802,1714555653851,-62580.35819875,0.0004698,61]
[325184803,1714555653871,-35585.42079085,0.0004698,120]
[325184804,1714555653893,-257.3449351,0.0004713,30]
[325184805,1714555653914,-426.34558821,0.000473,120]
[325184806,1714555653936,-411.556233,0.00047489,120]
[325184807,1714555653958,-159.0,0.00047682,90]
[325184808,1714555653980,-607.4595,0.00048264,2]
[325184809,1714555654001,-6730.49953425,0.00049,120]
[325184810,1714555654024,-155.91384571,0.00049026,30]
[325184811,1714555654046,-489.02074911,0.000493,2]
[325184812,1714555654073,-2499.47,0.00049798,120]
[325184813,1714555654095,-5470.68,0.00049799,7]
[325184814,1714555654115,-2499.47,0.00049799,120]
[325184815,1714555654138,-2499.47,0.00049799,120]
[325184816,1714555654160,-2499.47,0.00049799,120]
[325184817,1714555654181,-100182.44665379,0.000498,30]
[325184818,1714555654203,-165.35042,0.00049863,2]
[325184819,1714555654224,-164.392963,0.00049863,2]
[325184820,1714555654246,-356.580365,0.00049863,2]
[325184821,1714555654268,-607.45951,0.00049928,2]
[325184822,1714555654291,-2499.47,0.00049999,120]
[325184823,1714555654311,-154.70605849,0.0005,30]
[325184824,1714555654332,-960.60835228,0.0005,60]
[325184825,1714555654353,-8562.38280706,0.0005,120]
[325184826,1714555654376,-879.94320873,0.0005,15]
[325184827,1714555654396,-9238.03448781,0.0005,120]
[325184828,1714555654416,-207.28450884,0.0005,20]
[325184829,1714555654436,-4832.15882175,0.0005,120]
[325184830,1714555654456,-237.8528647,0.0005,60]
[325184831,1714555654477,-520.9,0.0005,7]
[325184832,1714555654496,-163.0,0.00050066,120]
[325184833,1714555654516,-154.15060825,0.00050526,60]
[325184834,1714555654536,-150.0,0.00051,85]
[325184835,1714555654556,-257.3449351,0.00051531,60]
[325184836,1714555654577,-607.4595,0.00051592,2]
[325184837,1714555654598,-697.0442924,0.00051884,60]
[325184838,1714555654618,-607.45951,0.00053256,2]
[325184839,1714555654640,-411.556233,0.00053425,120]
[325184840,1714555654661,-356.580365,0.00054448,2]
[325184841,1714555654681,-164.392963,0.00054703,2]
[325184842,1714555654703,-500.0,0.00054794,120]
[325184843,1714555654726,-500.0,0.00054794,120]
[325184844,1714555654748,-500.0,0.00054794,120]
[325184845,1714555654771,-500.0,0.00054794,120]
[325184846,1714555654794,-500.0,0.00054794,120]
[325184847,1714555654818,-500.0,0.00054794,120]
[325184848,1714555654840,-500.0,0.00054794,120]
[325184849,1714555654862,-500.0,0.00054794,120]
[325184850,1714555654884,-500.0,0.00054794,120]
[325184851,1714555654908,-500.0,0.00054794,120]
[325184852,1714555654930,-500.0,0.00054794,120]
[325184853,1714555654952,-500.0,0.00054794,120]
[325184854,1714555654974,-500.0,0.00054794,120]
[325184855,1714555654998,-500.0,0.00054794,120]
[325184856,1714555655020,-500.0,0.00054794,120]
[325184857,1714555655048,-362.97,0.00054794,120]
[325184858,1714555655079,-2499.47,0.00054794,120]
[325184859,1714555655107,-509.82286772,0.00054795,120]
[325184860,1714555655133,-509.82286772,0.00054795,120]
[325184861,1714555655165,-509.82286772,0.00054795,120]
[325184862,1714555655192,-509.82286772,0.00054795,120]
[325184863,1714555655219,-509.82286772,0.00054795,120]
[325184864,1714555655248,-509.82286772,0.00054795,120]
[325184865,1714555655275,-509.82286772,0.00054795,120]
[325184866,1714555655300,-509.82286772,0.00054795,120]
[325184867,1714555655327,-509.82286772,0.00054795,120]
[325184868,1714555655352,-509.82286772,0.00054795,120]
[325184869,1714555655375,-509.82286772,0.00054795,120]
[325184870,1714555655399,-509.82286772,0.00054795,120]
[325184871,1714555655424,-509.82286772,0.00054795,120]
[325184872,1714555655449,-509.82286772,0.00054795,120]
[325184873,1714555655475,-509.82286772,0.00054795,120]
[325184874,1714555655501,-509.82286772,0.00054795,120]
[325184875,1714555655526,-509.82286772,0.00054795,120]
[325184876,1714555655548,-509.82286772,0.00054795,120]
[325184877,1714555655572,-509.82286772,0.00054795,120]
[325184878,1714555655599,-510.32,0.00054795,120]
[325184879,1714555655625,-2039.36647087,0.00054795,120]
[325184880,1714555655648,-2039.36647087,0.00054795,120]
[325184881,1714555655673,-2039.36647087,0.00054795,120]
[325184882,1714555655698,-2039.36647087,0.00054795,120]
[325184883,1714555655721,-2039.36647087,0.00054795,120]
[325184884,1714555655745,-2039.36647087,0.00054795,120]
[325184885,1714555655769,-2039.36647087,0.00054795,120]
[325184886,1714555655794,-2039.36647087,0.00054795,120]
[325184887,1714555655817,-2039.36647087,0.00054795,120]
[325184888,1714555655843,-2039.36647087,0.00054795,120]
[325184889,1714555655867,-2039.36647087,0.00054795,120]
[325184890,1714555655892,-2039.36647087,0.00054795,120]
[325184891,1714555655917,-2039.36647087,0.00054795,120]
[325184892,1714555655941,-2039.36647087,0.00054795,120]
[325184893,1714555655966,-2039.36647087,0.00054795,120]
[325184894,1714555655989,-607.4595,0.00054921,2]
[325184895,1714555656012,-1488.73259101,0.00055,30]
[325184896,1714555656037,-159.0,0.00055072,120]
[325184897,1714555656065,-2039.36647087,0.00055193,120]
[325184898,1714555656088,-165.35042,0.00055308,2]
[325184899,1714555656117,-2039.36647087,0.0005562,120]
[325184900,1714555656144,-1800.0,0.00056,120]
[325184901,1714555656169,-2039.36647087,0.00056047,120]
[325184902,1714555656195,-2039.36647087,0.00056473,120]
[325184903,1714555656218,-607.45951,0.00056585,2]
[325184904,1714555656244,-150.66852924,0.00056589,2]
[325184905,1714555656268,-153.69519904,0.00056858,120]
[325184906,1714555656292,-5799.999999,0.00056888,120]
[325184907,1714555656322,-2039.86,0.000569,120]
[325184908,1714555656346,-489.02074911,0.000569,2]
[325184909,1714555656370,-2499.47,0.00056941,120]
[325184910,1714555656392,-5470.68,0.00056999,30]
[325184911,1714555656415,-2499.47,0.00056999,120]
[325184912,1714555656438,-2499.47,0.00056999,120]
[325184913,1714555656463,-2499.47,0.00056999,120]
[325184914,1714555656487,-2499.47,0.00056999,120]
[325184915,1714555656512,-2499.47,0.00056999,120]
[325184916,1714555656539,-2499.47,0.00056999,120]
[325184917,1714555656564,-2499.58,0.00056999,120]
[325184918,1714555656589,-88483.56313604,0.00057,2]
[325184919,1714555656732,273.37336231,9.9e-05,2]
[325184920,1714555661406,273.37336231,9.9e-05,2]
[325184921,1714555669698,273.37336231,9.9e-05,2]
[325184922,1714555677752,273.37336231,9.9e-05,2]
[325184923,1714555686741,273.37336231,9.9e-05,2]
[325184924,1714555694906,273.37336231,9.9e-05,2]
[325184925,1714555703324,273.37336231,9.9e-05,2]
[325184926,1714555711263,273.37336231,9.9e-05,2]
[325184927,1714555719594,273.37336231,9.9e-05,2]
[325184928,1714555728093,273.37336231,9.9e-05,2]
[325184929,1714555733166,1203.54975148,9.999e-05,2]
[325184930,1714555736376,273.37336231,9.9e-05,2]
[325184931,1714555744432,273.37336231,9.9e-05,2]
[325184932,1714555752761,273.37336231,9.9e-05,2]
[325184933,1714555760776,273.37336231,9.9e-05,2]
[325184934,1714555769427,273.37336231,9.9e-05,2]
[325184935,1714555777473,264.50884171,9.9e-05,2]
[325184936,1714555777499,8.8645206,9.9e-05,2]
[325184937,1714555786094,273.37336231,9.9e-05,2]
[325184938,1714555794023,273.37336231,9.9e-05,2]
[325184939,1714555802356,273.37336231,9.9e-05,2]
[325184940,1714555810415,273.37336231,9.9e-05,2]
[325184941,1714555819349,273.37336231,9.9e-05,2]
[325184942,1714555827946,273.37336231,9.9e-05,2]
[325184985,1714555832047,-598.87210691,0.00018998,2]
[325184987,1714555832057,-250.0,0.00019517,2]
[325184989,1714555832066,-5012.62573784,0.00019862,2]
[325185003,1714555832195,-4021.94558928,0.00019862,2]
[325185033,1714555836314,273.37336231,9.9e-05,2]
[325185051,1714555838415,-343.88863573,0.00019862,2]
[325185052,1714555838426,-2101.71813346,0.00019863,2]
[325185053,1714555838436,-880.71139958,0.00019866,2]
[325185054,1714555838446,-5461.4995396,0.0002,2]
[325185056,1714555838455,-30916.3410234,0.0002,2]
[325185058,1714555838466,-1259.41545977,0.0002,2]
[325185059,1714555838477,-35259.53662713,0.0002,2]
[325185060,1714555838486,-241.74656629,0.0002,2]
[325185061,1714555838496,-330.04006716,0.0002,2]